Cogmind - Beta 16.1 @@@ ROGUE MODE // 2026.04.18 @ 07:12:24 Player: Shimejimeji Result: Destroyed by 5Z-6IM(R) with Subdweller Machine Gun Performance ------------- Evolutions (0) 0 Regions Visited (2) 400 Robots Destroyed (49) 245 Value Destroyed (1045) 1045 Prototype IDs (13) 260 Alien Tech Used (0) 0 Bonus (0) 0 TOTAL SCORE: 1950 Bonus ------- None Cogmind --------- Core Integrity 0/250 Matter 88/300 Energy 100/100 System Corruption 9% Temperature Cool (0) Movement Rolling (120) Ox1 Location -10/Subcaves Parts ------- > --- POWER (1) -------- (None) > --- PROPULSION (2) --- Subdweller Monowheel > --- UTILITY (2) ------ Large Storage Unit Seismic Detector > --- WEAPON (2) ------- Battle Cannon Hammer > --- INVENTORY (15) --- Subdweller Power Source Subdweller Power Source Meta Core Subdweller Optics Core Shielding Core Shielding Makeshift Laser Beam Cannon Beam Cannon Subdweller Beam Cannon Subdweller Machine Gun Grenade Launcher Peak State ------------ > --- POWER ------------ Ion Engine > --- PROPULSION ------- Aluminum Leg Makeshift Leg > --- UTILITY ---------- Large Storage Unit Seismic Detector > --- WEAPON ----------- Makeshift Laser Subdweller Machine Gun > --- INVENTORY -------- Subdweller Power Source Meta Core Wheel Subdweller Optics Core Shielding Core Shielding Beam Cannon Beam Cannon Subdweller Beam Cannon Subdweller Machine Gun Battle Cannon Grenade Launcher Hammer [Rating: 17] Favorites ----------- Power Ion Engine Engine Ion Engine Propulsion Aluminum Leg Treads Light Treads Leg Aluminum Leg Wheel Wheel Utility Large Storage Unit Device Seismic Detector Storage Large Storage Unit Protection Core Shielding Weapon Subdweller Beam Cannon Energy Gun Particle Gun Energy Cannon Subdweller Beam Cannon Ballistic Gun Assault Rifle Ballistic Cannon Battle Cannon Launcher Grenade Launcher Special Weapon Mining Laser Impact Weapon Hammer Build | -11 -10 -10 ------- Run | Yrd Mat Sub Slots Evolved . | . . . Power . | . . . Propulsion . | . . . Utility . | . . . Weapon . | . . . Parts Attached 49 | 8 23 18 Power 8 | 1 2 5 Engine 8 | 1 2 5 Core . | . . . Reactor . | . . . Propulsion 12 | 2 7 3 Treads 2 | . 2 . Leg 8 | 2 5 1 Wheel 2 | . . 2 Hover . | . . . Flight . | . . . Utility 9 | 2 6 1 Device 1 | 1 . . Storage 4 | 1 3 . Processor . | . . . Hackware . | . . . Protection 4 | . 3 1 Artifact . | . . . Weapon 20 | 3 8 9 Energy Gun 4 | 1 2 1 Energy Cannon 5 | . 2 3 Ballistic Gun 7 | 2 3 2 Ballistic Cannon 1 | . . 1 Launcher 1 | . . 1 Special Weapon 1 | . 1 . Impact Weapon 1 | . . 1 Slashing Weapon . | . . . Piercing Weapon . | . . . Special Melee Weapon . | . . . Unidentified Prototypes . | . . . Parts Lost 12 | . . 12 Power 4 | . . 4 Propulsion 6 | . . 6 Utility 1 | . . 1 Weapon 1 | . . 1 Highest Loss Streak 3 | . . 3 To Critical Strikes . | . . . Average Backups 12 | 3 11 12 Power 1 | . . 1 Propulsion 1 | 1 2 1 Utility 2 | . 2 3 Weapon 5 | 1 5 5 Tool/Special . | . . . Unused Backups 5 | . 1 4 Power 1 | . 1 . Propulsion . | . . . Utility 2 | . . 2 Weapon 1 | . . 1 Tool/Special 1 | . . 1 Average Slot Usage (%) 97 | . 99 96 Engine 13 | . 14 12 Treads 6 | . 1 8 Leg 16 | . 26 10 Wheel 3 | . . 5 Device 11 | . 11 11 Storage 14 | . 14 14 Protection 2 | . 2 2 Energy Gun 3 | . 7 1 Energy Cannon 10 | . 5 13 Ballistic Gun 10 | . 14 8 Ballistic Cannon 1 | . . 1 Impact Weapon 1 | . . 2 Peak Build Rating 17 | 7 9 17 Average Rating 10 | 6 8 11 On Entrance 5 | . 7 8 Avg Prop Armor Cover (%) 8 | . . 8 Naked Turns . | . . . Heaviest Build 42 | 14 33 42 Greatest Support 40 | 20 40 40 Greatest Overweight (x) 8 | 1 1 8 Average Overweight (x) 1 | . . 1 Largest Inventory Capacity 25 | 8 25 15 Average Capacity 14 | 7 12 15 Most Carried 15 | 5 15 15 Average Carried 12 | 3 11 12 Final Capacity 15 | 8 15 15 Final Carried 13 | 5 13 12 Class Distribution -------------------- 59% | Mutant 40% | Scavenger-Mutant Dominant Class ---------------- Scavenger-Mutant | -10/Materials Mutant | -10/Subcaves Resources | -11 -10 -10 ----------- Run | Yrd Mat Sub Matter Collected 1992 | 337 767 888 Remotely . | . . . Salvage Created 1410 | 148 768 494 Parts 86 | 12 43 31 Haulers Intercepted 2 | . 2 . Recyclers Shooed 1 | . 1 . Parts Field Recycled . | . . . Retrieved Matter . | . . . Parts Self-Destructed 18 | . . 18 Prevented . | . . . Parts Restored . | . . . Kills | -11 -10 -10 ------- Run | Yrd Mat Sub Combat Hostiles Destroyed 36 | . 19 17 Guns 20 | . 19 1 Cannons 10 | . . 10 AOE 4 | . . 4 Classes Destroyed 10 | 2 6 2 Builder 1 | . 1 . Tunneler 5 | 5 . . Hauler 2 | . 2 . Recycler 1 | 1 . . Operator 2 | . 2 . Watcher 2 | . 2 . Swarmer 16 | . 9 7 Grunt 10 | . 10 . Sentry 1 | . . 1 Subdweller 9 | . . 9 Best Kill Streak 4 | 2 4 3 Combat Bots Only 3 | . 3 3 Max Kills in Single Turn 1 | 1 1 1 Gunslinging . | . . . Exploded 1 | . . 1 Melee . | . . . Uniques/NPCs Destroyed . | . . . Combat | -11 -10 -10 -------- Run | Yrd Mat Sub Hostile Shots Fired 153 | . 66 87 Missed 43 | . 24 19 Hits 110 | . 42 68 Projectile 110 | . 42 68 AOE 6 | . . 6 Damage Taken 1994 | . 432 1562 Core 272 | . 73 199 Absorbed by Shields . | . . . Redirected to Shielding 19 | . 8 11 Regen/Repaired (Parts) 13 | . 13 . Core Remaining (%) 100 | 100 . . Volleys Fired 143 | 19 62 62 Largest 2 | 2 2 2 Hottest 120 | 60 100 120 Shots Fired 250 | 38 120 92 Gun 169 | 38 114 17 Cannon 70 | . 1 69 Launcher 6 | . . 6 Special 5 | . 5 . Kinetic 136 | 19 76 41 Thermal 108 | 19 44 45 Explosive 6 | . . 6 Electromagnetic . | . . . Robot Hit Streak 29 | 7 16 29 Robot Miss Streak 3 | 2 3 2 Penetration Max . | . . . Secondary Targets 4 | . 4 . Max Gunslinging Chain 1 | . 1 . Shots Hit Robots 144 | 26 76 42 Core Hits 63 | 7 37 19 Critical Kills 5 | . 3 2 Critical Parts Destroyed . | . . . Critical Strikes 6 | . 4 2 Burn 1 | . 1 . Meltdown 2 | . . 2 Destroy 3 | . 3 . Melee Attacks 58 | . . 58 Impact 58 | . . 58 Slashing . | . . . Piercing . | . . . Sneak Attacks . | . . . Combat Hostiles . | . . . Follow-up Attacks . | . . . Damage Inflicted 2394 | 288 1045 1061 Guns 1458 | 288 1045 125 Cannons 748 | . . 748 Explosions 188 | . . 188 Melee . | . . . Ramming . | . . . Kinetic 931 | 148 658 125 Thermal 1275 | 140 387 748 Explosive 188 | . . 188 Electromagnetic . | . . . Impact . | . . . Slashing . | . . . Piercing . | . . . Highest Corruption 9 | . 2 9 Average Corruption 2 | . 1 2 Corruption Purged . | . . . Corruption Blocked . | . . . Effects 105 | . 27 78 Message Errors 24 | . 7 17 Matter Fused 30 | . 9 21 Heat Flow Errors 18 | . 5 13 Energy Discharges 12 | . 2 10 Parts Rejected 1 | . . 1 Data Loss (minor) 11 | . 2 9 Data Loss (major) 5 | . 1 4 Misfires 3 | . 1 2 Weapon Failures 1 | . . 1 Overload Shots . | . . . Overflow Damage 30 | . . 30 Projectiles . | . . . Explosions 30 | . . 30 Melee . | . . . Knockbacks . | . . . Impact . | . . . Kinetic . | . . . Secondary . | . . . Self-Inflicted Damage 24 | . . 24 Shots 1 | . . 1 Rammed . | . . . Targets Rammed 1 | . 1 . Kicked 1 | . 1 . Crushed . | . . . Highest Temperature 274 | . 274 249 Average Temperature 73 | . 74 70 Received Heat Transfer 240 | . 156 84 Effects 1 | . 1 . Energy Bleed 1 | . 1 . Siege Activations . | . . . Martial Activations . | . . . Shielding Activations . | . . . Robots Disrupted . | . . . Combat Hostiles . | . . . Robots Corrupted . | . . . Combat Hostiles . | . . . Parts Fried . | . . . Impact Corruptions . | . . . Robots Melted 2 | . . 2 Combat Hostiles 2 | . . 2 Parts Melted 7 | 1 2 4 Heat Transferred 2620 | 325 963 1332 Parts Sabotaged . | . . . Parts Stolen . | . . . Parts Stripped . | . . . Power Chain Reactions . | . . . Alert | -11 -10 -10 ------- Run | Yrd Mat Sub Maximum Alert Level . | . . . Low Security (%) 100 | 100 100 . Level 1 . | . . . Level 2 . | . . . Level 3 . | . . . Level 4 . | . . . Level 5 . | . . . High Security . | . . . Max Security . | . . . Peak Influence 140 | 5 140 . Initial . | . . . Average 35 | . 37 . Influence Increases 889 | 30 619 240 Destroy 0b10 Robot/C 540 | . 380 160 Destroy 0b10 Robot/NC 70 | 30 40 . Destroy Leader 118 | . 98 20 Successful Hack 33 | . 33 . Destroy Structure 8 | . 8 . Lose Combat Pursuer 120 | . 60 60 Influence Decreases 842 | 30 619 193 Time Decay 772 | 30 619 123 Lost Part 70 | . . 70 Squads Dispatched 4 | . 4 . Investigation 2 | . 2 . Extermination . | . . . Reinforcement 2 | . 2 . Assault . | . . . Garrison . | . . . Intercept . | . . . Searches Triggered . | . . . Construction Impeded . | . . . Haulers Reinforced . | . . . Active Scanning Responses . | . . . Cargo Convoy Interrupts . | . . . Stealth | -11 -10 -10 --------- Run | Yrd Mat Sub Distress Signals 2 | . 2 . Communications Jammed . | . . . Distress Signals . | . . . Times Spotted 50 | . 28 22 Peak Tracking Total 4 | . 4 3 Tactical Retreats 4 | . 2 2 Traps | -11 -10 -10 ------- Run | Yrd Mat Sub Traps Triggered 4 | . 2 2 Indirectly . | . . . Trap Hack Attempts . | . . . Triggered . | . . . Disarmed . | . . . Reprogrammed . | . . . Reused . | . . . Traps Extracted . | . . . Installed . | . . . Triggered . | . . . Machines | -11 -10 -10 ---------- Run | Yrd Mat Sub Machines Disabled 1 | . . 1 Max in Single Turn 1 | . . 1 Machines Repaired . | . . . Machines Dismantled . | . . . Machines Sabotaged . | . . . Overloaded Fab Kills . | . . . Hacking | -11 -10 -10 --------- Run | Yrd Mat Sub Machines Accessed 9 | . 7 2 Terminals 6 | . 6 . Fabricators . | . . . Repair Stations 1 | . 1 . Recycling Units . | . . . Scanalyzers . | . . . Garrison Access . | . . . Total Hacks 23 | . 19 4 Successful 14 | . 10 4 Failed 9 | . 9 . Catastrophic . | . . . Database Lockouts . | . . . Manual 13 | . 13 . Terminals 16 | . 16 . Fabricators . | . . . Repair Stations 3 | . 3 . Recycling Units . | . . . Scanalyzers . | . . . Garrison Access . | . . . Terminal Hacks 9 | . 5 4 Record 6 | . 3 3 Robot Analysis 1 | . 1 . Terminal Index 1 | . 1 . Proto ID Catalog 1 | . . 1 Fabricator Hacks . | . . . Repair Station Hacks 2 | . 2 . Scan Component 1 | . 1 . Repair 1 | . 1 . Recycling Unit Hacks . | . . . Scanalyzer . | . . . Garrison Access Hacks . | . . . Unauthorized Hacks 3 | . 3 . Terminals 3 | . 3 . Botnet 2 | . 2 . Operators 1 | . 1 . Fabricators . | . . . Repair Stations . | . . . Recycling Units . | . . . Scanalyzers . | . . . Garrison Access . | . . . Data Cores Recovered . | . . . Used . | . . . Hacking Detections 6 | . 6 . Full Trace Events 2 | . 2 . Feedback Events 1 | . 1 . Corruption 1 | . 1 . Feedback Blocked . | . . . Robot Schematics Acquired . | . . . Robots Built . | . . . Authchips . | . . . Time . | . . . Total Robot Build Rating . | . . . Part Schematics Acquired . | . . . Parts Built . | . . . Authchips . | . . . Time . | . . . Total Part Build Rating . | . . . Part Studies Acquired . | . . . Parts Repaired 1 | . 1 . Time 26 | . 26 . Parts Recycled . | . . . Recycled Matter . | . . . Retrieved Matter . | . . . Retrieved Components . | . . . Parts Scanalyzed . | . . . Part Schematics Acquired . | . . . Parts Damaged . | . . . Bothacking | -11 -10 -10 ------------ Run | Yrd Mat Sub Used RIF Installer . | . . . Robots Hacked . | . . . Non-combat . | . . . Combat . | . . . Robot Hacks Applied . | . . . Relay Couplers Released . | . . . Fabnet Peak Effective % . | . . . Robots Rewired . | . . . Allies Hacked . | . . . Hacks Repelled . | . . . Allies | -11 -10 -10 -------- Run | Yrd Mat Sub Total Allies . | . . . Largest Group . | . . . Highest-Rated Group . | . . . Highest-Rated Ally . | . . . Total Orders . | . . . Ally Attacks . | . . . Total Damage . | . . . Kills . | . . . Allies Corrupted . | . . . Allies Melted . | . . . Intel | -11 -10 -10 ------- Run | Yrd Mat Sub Active Infowar (turns) 6408 | 121 2391 3896 Seismic 6408 | 121 2391 3896 Robot Analysis Total 1 | . 1 . Derelict Logs Recovered 2 | . . 2 Drone Launches . | . . . Drone Recoveries . | . . . Exploration | -11 -10 -10 ------------- Run | Yrd Mat Sub Turns Passed 7791 | 215 2836 4740 Spaces Moved 3657 | 118 1335 2204 Core 82 | 2 . 80 Treads 786 | . 84 702 Legs 2134 | 116 1251 767 Wheels 655 | . . 655 Hover . | . . . Flight . | . . . Fastest Speed 50 | 50 120 120 Average Speed 168 | 120 164 173 Slowest Speed 450 | 190 190 450 Overloaded Moves . | . . . Propulsion Burnouts . | . . . Robots Hopped . | . . . Potential Cave-ins 8 | . . 8 Cave-ins Triggered 1 | . . 1 Exploration Rate (%) 67 | 6 99 96 Regions Visited 2 Branch Regions 1 Pre-discovered Areas . | . . . Known Exits Taken . | . . . Unknown Exits Taken 2 | 1 1 . Scrap Searched 8 | . . 8 Spaces Dug 35 | . 5 30 Terrain Destroyed 78 | . 5 73 Melee 22 | . . 22 Projectile 16 | . 5 11 AOE 40 | . . 40 Terrain Rammed . | . . . Walls Destroyed . | . . . Machines Disabled . | . . . Actions | -11 -10 -10 --------- Run | Yrd Mat Sub Total 4895 | 150 1851 2894 Wait 828 | . 353 475 Move 3655 | 117 1334 2204 Hop . | . . . Pick Up 36 | 5 19 12 Fast Attach 12 | 7 4 1 Attach 16 | 1 4 11 Detach 9 | 1 7 1 Swap 106 | . 40 66 Drop 30 | . 26 4 Fire 143 | 19 62 62 Melee 58 | . . 58 Ram . | . . . Kick 1 | . 1 . Crush . | . . . Escape Stasis . | . . . Rewire 1 | . 1 . Trap . | . . . Miscellaneous . | . . . Route ------- -11/Scrapyard -10/Materials (discovered 5 exits: [*Mat x3] / [*Min] / *Sub) -10/Subcaves (discovered 3 exits: *Mat x2 / *Rec) History --------- Turn | Location | Event 19 | -11/Scrapyard | Discovered new exit (range 15) 216 | -11/Scrapyard | Entered Materials 312 | -10/Materials | Build established: Mutant 436 | -10/Materials | Discovered new exit (range 3) 916 | -10/Materials | Derelicts attacked the area 1020 | -10/Materials | Discovered new exit (range 8) 1039 | -10/Materials | Discovered new exit (range 14) 1219 | -10/Materials | Build established: Scavenger-Mutant 1481 | -10/Materials | Discovered new exit (range 14) 2369 | -10/Materials | Repaired Seismic Detector 2721 | -10/Materials | Discovered new exit (range 9) 3052 | -10/Materials | Entered Subcaves 3054 | -10/Subcaves | Learned 2 Materials zone layouts 3192 | -10/Subcaves | A swath of the cavern ceiling suddenly collapsed 3221 | -10/Subcaves | Build established: Mutant 3264 | -10/Subcaves | Learned Materials emergency access door positions 3678 | -10/Subcaves | Visited 4L-MR0's lab 3704 | -10/Subcaves | Found Meta Core 4100 | -10/Subcaves | Shifting Twisted Machinery released Sub. Machine Gun 4138 | -10/Subcaves | Shifting Twisted Machinery released Sub. Monowheel 4543 | -10/Subcaves | Discovered new exit (range 8) 4877 | -10/Subcaves | Visited Clippyterm 4881 | -10/Subcaves | Identified exit to Recycling 4881 | -10/Subcaves | Identified exit to Materials 4881 | -10/Subcaves | Learned Factory trap positions 6041 | -10/Subcaves | Ambushed by Subdweller buried in earth 6042 | -10/Subcaves | Core integrity fell below 50% 6044 | -10/Subcaves | Core integrity fell below 20% 6239 | -10/Subcaves | Lost 3 parts (1p1n1w) 6439 | -10/Subcaves | Build established: Scavenger-Mutant 7346 | -10/Subcaves | Crushed by falling debris 7377 | -10/Subcaves | Lost 3 parts (1p2n) 7637 | -10/Subcaves | Build established: Mutant 7792 | -10/Subcaves | A Subdweller sparked back to life 7792 | -10/Subcaves | A Subdweller sparked back to life 7792 | -10/Subcaves | A Subdweller sparked back to life 7792 | -10/Subcaves | Destroyed by 5Z-6IM(R) with Subdweller Machine Gun Last Messages --------------- 07348_ System corrupted: Component data lost. 07368_ GX>5DXPYNGI&OR 5TBHFYCWWIFDDT Y: 07397_ System corrupted: Heat flow error (+140). 07418_ System corrupted: Component data lost. 07437_ System corrupted: Energy discharge (-38). 07455_ T% QE:G#2JK>RL#C=LYU7V:XLA%R S7XK 07470_ System corrupted: Component data lost. 07513_ #Z7=8:TFUIZMFMHH A1=Y1 07531_ System corrupted: Matter fused (-9). 07574_ System corrupted: Matter fused (-7). 07609_ System corrupted: Matter fused (-8). 07627_ System corrupted: Energy discharge (-29). 07699_ System corrupted: Matter fused (-5). 07706_ Acquired Sub. Monowheel. 07726_ System corrupted: Matter fused (-10). 07745_ System corrupted: Component data lost. 07792_ EZ-KGV(R) creaks and sparks as it begins to move. 07792_ 5Z-6IM(R) creaks and sparks as it begins to move. 07792_ Q2-ZJ9(R) creaks and sparks as it begins to move. [Achievement: This Is Interesting...] Map ----- +----------------------------------------------------+ | ??##### #### " ##?????????????????## # | | ??????# ##??# " ###????#######?????### | | ??????## #???## #????### ###?### | | ##??### #????# ##???# ### | | ##?# ## ##???#" ##### # # | | ### # #???#" "" ## | | ##???### ## | | ### #?????# ### ## | | ##?##????# " & ## ## ##? | | #??????# ##" # ## ### | | ##????# ## ### ### | | ####?## ## ###" #?## | | ##?## ##### " #### | | #??## ???# ##; # | | #???# ???# # " ### | | ###???# ???## ##?### | | #####?? ###??# #????# | | #### #??# # #### ## #????## | | #### #??# ### ### ##?????### ### | | #### ##?###? ## ##?# #???????####?# | | ### #??????# # #??# #????????????? | | #### ### ###???## ##?# ##????????????? | | #??## # ##### #?# #????????????? | | #??# ## < #### ##????????????? | | ???# R